bitfinex-derivatives/quotes_ETHF0:USTF0_20260207
["timestamp","ask_amount","ask_price","bid_price","bid_amount"]
[1770462530764,0.87188378,2017.3,2015.8,4.59732946]
[1770462530967,0.87188378,2017.3,2015.9,11.02032946]
[1770462531265,0.92054438,2017.2,2015.8,9.751]
[1770462531459,0.92054438,2017.2,2015.8,9.75452611]
[1770462531654,0.92054438,2017.2,2015.9,4.59732946]
[1770462531857,0.92054438,2017.2,2015.9,9.776]
[1770462532465,0.92054438,2017.2,2015.8,0.00352611]
[1770462532763,0.92054438,2017.2,2015.8,10.99025036]
[1770462533559,0.92054438,2017.2,2015.9,4.80866645]
[1770462533764,0.92054438,2017.2,2016.5,4.56050645]
[1770462533954,0.92054438,2017.2,2016.5,14.43150645]
[1770462534159,0.92054438,2017.2,2016.6,4.40835975]
[1770462534362,0.08629529,2017.7,2016.6,4.40835975]
[1770462534560,2.64799994,2017.6,2016.8,3.11380844]
[1770462534762,2.64799994,2017.6,2016.6,11.91635975]
[1770462534964,15.2706829,2016.8,2016.6,11.91635975]
[1770462535159,2.66185912,2017.3,2016.6,11.91635975]
[1770462536064,2.66185912,2017.3,2016.5,3.11380844]
[1770462536460,2.66185912,2017.3,2016.5,7.51199003]
[1770462536661,2.66185912,2017.3,2016.5,3.11380844]
[1770462536964,2.66185912,2017.3,2016.5,17.64728258]
[1770462537658,2.66185912,2017.3,2016.6,4.34947414]
[1770462539866,2.66185912,2017.3,2016.5,3.11380844]
[1770462540261,2.66185912,2017.3,2016.5,10.70680844]
[1770462540459,2.66185912,2017.3,2016.5,3.11380844]
[1770462540665,2.66185912,2017.3,2016.2,3.11380844]
[1770462540863,2.66185912,2017.3,2016.2,7.50697063]
[1770462541365,2.66185912,2017.3,2016.3,4.39316219]
[1770462545767,2.90985912,2017.3,2016.0,6.28806813]
[1770462545967,5.07137671,2017.1,2016.0,6.28806813]
[1770462546163,4.82334671,2016.9,2016.0,6.28806813]
[1770462546867,5.07139671,2016.9,2015.8,6.29159424]
[1770462548567,5.28163456,2016.7,2015.8,0.00352611]
[1770462549074,5.28163456,2016.7,2015.8,6.29159424]
[1770462552969,5.03356456,2016.7,2016.0,6.57089208]
[1770462553583,0.24801,2017.2,2016.0,6.57089208]
[1770462553584,5.47136306,2016.9,2016.0,6.57089208]
[1770462555480,5.47136306,2016.9,2015.8,0.00352611]
[1770462555481,5.71941306,2016.9,2015.8,6.57441819]
[1770462555885,5.51701127,2016.7,2015.8,0.00352611]
[1770462557281,5.51701127,2016.7,2015.8,6.57441819]
[1770462557685,5.76508127,2016.7,2015.8,6.57441819]
[1770462562285,5.51701127,2016.7,2015.9,6.57089208]
[1770462566591,5.51701127,2016.7,2015.9,6.25949096]
[1770462566791,5.51701127,2016.7,2016.0,6.57089208]
[1770462568390,6.65407069,2016.8,2016.0,6.57089208]
[1770462569789,6.79803863,2017.3,2016.1,6.57089208]
[1770462570787,0.24804,2017.0,2015.9,9.52440325]
[1770462570987,10.96039097,2017.8,2015.8,6.57441819]
[1770462570988,6.84194255,2016.3,2015.8,6.57441819]
[1770462571289,6.84741205,2016.3,2015.8,0.00352611]
[1770462572791,6.84741205,2016.3,2015.8,6.57441819]
[1770462576891,0.0054695,2016.3,2015.8,6.57441819]
[1770462577084,7.28424807,2016.3,2015.8,6.57441819]
[1770462579099,0.0054695,2016.3,2015.8,6.57441819]
[1770462579396,7.39388082,2016.3,2015.8,0.00352611]
[1770462580094,7.39388082,2016.3,2015.8,7.29622587]
[1770462580997,0.0054695,2016.3,2015.8,7.29622587]
[1770462582992,7.60641758,2017.4,2015.9,7.29269976]
[1770462583291,7.60641758,2017.4,2016.1,7.29269976]
[1770462583494,7.60641758,2017.4,2016.3,7.29269976]
[1770462584196,7.61045878,2017.4,2016.3,7.29269976]
[1770462587790,7.73095308,2017.2,2016.1,7.29269976]
[1770462588798,7.97896308,2017.2,2016.1,7.29269976]
[1770462589098,7.73095308,2017.0,2016.1,7.29269976]
[1770462589793,7.97898308,2017.0,2016.1,7.29269976]
[1770462590188,7.73095308,2016.6,2015.8,0.00352611]
[1770462590393,7.73095308,2016.4,2015.5,7.29269976]
[1770462591395,7.73095308,2016.4,2015.5,7.29880678]
[1770462604206,7.97906308,2016.4,2015.5,7.29880678]
[1770462604412,7.73095308,2016.3,2014.9,7.29269976]
[1770462604610,7.97912308,2015.9,2014.9,7.29269976]
[1770462605612,7.9843014,2015.9,2014.9,7.29641558]
[1770462617213,0.00517832,2015.9,2014.9,7.29641558]
[1770462617418,8.10453608,2015.9,2014.9,7.29641558]
[1770462620121,8.09935776,2015.6,2014.9,7.29641558]
[1770462620319,8.09935776,2015.6,2014.9,7.43160755]
[1770462620525,8.09935776,2015.8,2014.9,7.43160755]
[1770462621418,8.09935776,2015.8,2014.9,7.43542745]
[1770462621617,0.00517832,2015.9,2014.9,7.43542745]
[1770462622016,8.10453608,2015.9,2014.9,7.43542745]
[1770462634738,8.90053661,2016.1,2015.0,0.24828]
[1770462635040,8.90053661,2016.5,2015.3,8.37189173]
[1770462635232,8.09935776,2016.5,2015.3,8.37189173]
[1770462635842,8.10354053,2016.5,2015.3,8.37189173]
[1770462636531,8.56910643,2016.3,2015.3,8.37189173]
[1770462648150,8.56910643,2016.2,2015.3,8.37189173]
[1770462651453,8.56910643,2016.1,2015.3,8.37189173]
[1770462652252,8.56910643,2015.9,2015.3,8.37189173]
[1770462661163,2.15980412,2016.5,2015.1,2.15562135]
[1770462661164,8.5732892,2016.5,2015.6,8.97612154]
[1770462661463,8.56910643,2016.3,2015.6,8.97612154]
[1770462662367,8.56910643,2016.7,2016.2,8.97612154]
[1770462663464,0.00430342,2016.7,2016.2,8.97612154]
[1770462664269,7.63359262,2016.7,2016.2,8.97612154]
[1770462665164,7.63941467,2016.7,2016.2,8.97612154]
[1770462665966,0.00582205,2016.7,2016.2,8.97612154]
[1770462666368,9.74206812,2016.7,2016.2,8.97612154]
[1770462670975,9.74206812,2016.7,2015.8,9.67958529]
[1770462671373,9.74206812,2016.7,2015.5,2.96426685]
[1770462671374,9.48249095,2016.0,2015.5,9.67958529]
[1770462672079,9.48249095,2016.0,2015.3,9.67958529]
[1770462672377,9.48249095,2015.8,2015.1,9.67958529]
[1770462674279,9.48249095,2015.6,2015.0,9.67958529]
[1770462674676,13.85930121,2016.3,2015.6,9.67958529]
[1770462674677,9.48249095,2016.3,2015.6,9.67958529]
[1770462674877,9.48249095,2016.6,2015.9,9.67958529]
[1770462675082,9.48249095,2016.6,2016.1,9.67958529]
[1770462675777,9.48249095,2016.6,2015.9,9.67958529]
[1770462675981,9.48249095,2016.6,2015.2,9.67958529]
[1770462681580,9.48249095,2016.6,2015.4,9.67958529]
[1770462682080,9.48249095,2017.4,2016.5,9.67958529]
[1770462682479,9.48249095,2017.6,2016.5,9.67958529]
[1770462683084,9.48770585,2017.6,2016.5,9.68519263]
[1770462685783,9.48249095,2017.5,2016.5,9.68519263]
[1770462685989,9.48249095,2017.2,2016.1,9.67958529]
[1770462686384,9.48249095,2017.2,2015.6,9.67958529]
[1770462687088,9.48249095,2017.2,2015.6,9.68470998]
[1770462687389,9.48249095,2017.2,2015.7,9.67958529]
[1770462688594,9.48249095,2017.0,2015.7,9.67958529]
[1770462692399,3.10226671,2016.5,2015.6,0.00512469]
[1770462692599,9.48249095,2016.4,2015.6,0.00512469]
[1770462695701,9.48249095,2016.4,2014.8,9.67958529]
[1770462696700,9.48249095,2016.4,2014.8,9.68471452]
[1770462697805,9.48249095,2016.4,2015.1,9.52719876]
[1770462704502,9.73060095,2016.4,2015.1,9.52719876]
[1770462720616,9.92890244,2016.3,2015.1,9.52719876]
[1770462720920,9.92890244,2015.9,2014.8,9.53232799]
[1770462721118,9.93520032,2015.9,2014.8,9.53232799]
[1770462721329,9.92890244,2015.8,2014.8,9.53232799]
[1770462723816,9.92890244,2015.6,2014.8,9.53232799]
[1770462724822,9.92890244,2015.6,2014.8,0.00512923]
[1770462726114,10.10086838,2015.4,2014.3,9.77625319]
[1770462726525,10.10086838,2015.0,2013.9,9.77625319]
[1770462726723,10.10086838,2015.0,2014.1,9.77625319]
[1770462727224,10.10086838,2015.0,2014.1,9.77993629]
[1770462727524,10.10086838,2015.0,2014.1,0.0036831]
[1770462727825,10.34914838,2015.0,2014.1,0.0036831]
[1770462728024,10.34914838,2015.0,2013.8,0.38494868]
[1770462728328,10.10086838,2014.7,2013.5,9.77625319]
[1770462728920,10.10086838,2014.7,2013.5,9.78068653]
[1770462730029,10.10086838,2014.7,2013.5,10.17597562]
[1770462737031,10.34918838,2014.7,2013.5,10.17597562]
[1770462738641,10.10086838,2014.7,2013.5,10.17597562]
[1770462739440,10.11086838,2014.7,2013.5,10.17597562]
[1770462748941,9.7350552,2014.4,2013.5,0.00443334]
[1770462749141,9.74065271,2014.4,2013.5,0.00443334]
[1770462750147,9.74065271,2014.4,2013.5,9.35804307]
[1770462750344,9.74065271,2014.4,2013.5,0.00443334]
[1770462751543,9.74065271,2014.4,2012.6,2.95042235]
[1770462751849,9.7350552,2014.0,2012.7,9.35360973]
[1770462752543,9.7350552,2014.0,2012.7,9.3591608]
[1770462752938,9.7350552,2014.0,2012.7,9.74949314]
[1770462760548,9.9834552,2014.0,2012.7,9.3591608]
[1770462760948,10.06465825,2013.9,2012.7,9.3591608]
[1770462761555,9.81623825,2013.7,2012.7,9.3591608]
[1770462762049,9.81623825,2013.7,2012.4,9.56304761]
[1770462762451,9.81623825,2013.4,2012.4,9.56304761]
[1770462762853,9.81623825,2013.4,2012.4,9.56765678]
[1770462763347,9.81623825,2013.1,2012.4,0.00460917]
[1770462766256,9.81623825,2013.1,2012.2,9.56304761]
[1770462766461,9.81623825,2013.1,2011.8,9.56304761]
[1770462766753,9.81623825,2013.1,2011.8,9.94631497]
[1770462767463,9.81623825,2012.9,2011.8,9.9519055]
[1770462767655,9.82075586,2012.9,2011.8,9.9519055]
[1770462767966,9.82075586,2012.9,2011.9,9.56304761]
[1770462767967,0.00451761,2012.9,2011.9,9.56304761]
[1770462769759,9.81623825,2013.2,2012.2,9.56304761]
[1770462769959,9.81623825,2013.6,2012.5,9.56304761]
[1770462770159,4.0733,2013.1,2012.5,9.56304761]
[1770462770359,9.81623825,2013.6,2012.5,9.56304761]
[1770462770659,9.81985047,2013.6,2012.5,9.56304761]
[1770462773659,0.00361222,2013.6,2012.8,9.56304761]
[1770462774059,9.81623825,2014.5,2012.8,9.56304761]
[1770462774761,9.81623825,2013.5,2012.7,9.56304761]
[1770462775066,9.82031299,2013.5,2012.7,9.56304761]
[1770462775463,9.82031299,2013.5,2012.0,9.56304761]
[1770462780463,9.82031299,2013.5,2012.3,9.56304761]
[1770462781972,9.82031299,2013.5,2012.5,9.56304761]
[1770462783977,0.00407474,2013.5,2012.5,9.56304761]
[1770462784578,9.81623825,2013.9,2012.8,9.56304761]
[1770462785576,9.82053067,2013.9,2012.8,9.56304761]
[1770462786678,9.77356542,2013.9,2012.8,9.56304761]
[1770462791069,9.46875227,2013.9,2013.0,9.49060033]
[1770462793072,0.00429242,2013.9,2013.0,9.49060033]
[1770462793279,9.46445985,2014.3,2013.3,9.49060033]
[1770462794378,9.47003399,2014.3,2013.3,9.49587661]
[1770462806881,9.47003399,2014.3,2013.5,9.49060033]
[1770462807383,9.47445985,2014.7,2013.8,9.49060033]
[1770462808686,9.47910313,2014.7,2013.8,9.49060033]
[1770462809386,9.46522659,2014.7,2014.0,9.49060033]
[1770462809990,0.00076674,2014.7,2014.0,9.49060033]
[1770462811586,9.46522659,2014.7,2014.0,9.49060033]
[1770462813492,9.46522659,2014.7,2013.6,9.49060033]
[1770462814292,9.46445985,2014.4,2013.4,9.49060033]
[1770462817900,9.67462345,2014.3,2013.4,9.49060033]
[1770462819396,9.67462345,2014.2,2013.4,9.49060033]
[1770462819904,9.67462345,2014.2,2013.3,0.00527628]
[1770462820100,9.67462345,2014.2,2013.3,10.16422339]
[1770462820500,9.67462345,2014.1,2013.3,10.16422339]
[1770462820996,9.67462345,2014.1,2013.3,0.00527628]
[1770462823209,9.67462345,2014.0,2013.3,0.00527628]
[1770462828112,7.40912668,2013.9,2012.9,10.15894711]
[1770462828412,9.67462345,2013.8,2012.9,10.15894711]
[1770462829112,9.67462345,2013.8,2012.9,10.16456085]
[1770462831307,9.67462345,2013.9,2012.9,10.16456085]
[1770462832114,9.67462345,2014.2,2012.9,10.16456085]
[1770462835019,9.67462345,2014.1,2012.9,10.16456085]
[1770462842419,9.67462345,2014.0,2012.9,10.16456085]
[1770462843215,9.67462345,2013.9,2012.9,10.16456085]
[1770462848925,9.93395295,2013.8,2012.9,10.16456085]
[1770462849325,9.12626744,2013.8,2013.0,9.53728958]
[1770462850422,9.95452594,2013.7,2013.0,9.53728958]
[1770462851123,9.95452594,2013.7,2013.0,9.49461566]
[1770462852329,9.95452594,2013.6,2013.0,9.49461566]
[1770462861239,9.95452594,2013.6,2012.6,12.44503801]
[1770462861441,9.95452594,2013.2,2012.6,9.49461566]
[1770462861636,9.14665352,2013.2,2012.6,9.49461566]
[1770462861943,9.95452594,2013.3,2012.6,9.49461566]
[1770462862341,9.95960794,2013.3,2012.6,9.49860577]
[1770462864642,17.36873462,2013.3,2012.6,0.00399011]
[1770462864943,9.95452594,2013.2,2012.4,9.49461566]
[1770462865140,9.95452594,2013.1,2012.3,9.49461566]
[1770462865344,9.95452594,2013.1,2012.2,9.49461566]
[1770462865642,7.40912668,2013.0,2012.2,9.49461566]
[1770462865841,9.95452594,2012.9,2012.2,9.49933362]
[1770462867141,9.95452594,2012.9,2012.2,0.00471796]
[1770462867335,9.95452594,2012.7,2012.2,9.49933362]
[1770462867842,9.95452594,2012.7,2012.2,0.00471796]
[1770462868141,9.95452594,2012.5,2012.0,9.49461566]
[1770462869136,9.95452594,2012.5,2012.0,9.49868958]
[1770462872345,9.95452594,2012.7,2012.0,9.49868958]
[1770462872943,9.95452594,2012.9,2012.0,9.49868958]
[1770462873345,9.95452594,2013.0,2012.0,9.49868958]
[1770462884155,9.1067568,2012.9,2012.0,9.49868958]
[1770462884451,9.1067568,2012.8,2012.0,9.49868958]
[1770462886453,9.1067568,2012.7,2012.0,0.00407392]
[1770462887054,9.1067568,2012.5,2012.0,0.00407392]
[1770462887854,9.1067568,2012.5,2011.8,9.79515376]
[1770462888258,9.1067568,2012.5,2011.4,9.79515376]
[1770462888759,9.1067568,2012.5,2011.4,9.80101556]
[1770462889061,9.1067568,2012.4,2011.4,9.80101556]
[1770462890059,9.1067568,2012.4,2011.4,10.25392301]
[1770462890559,9.1067568,2012.2,2011.4,10.25392301]
[1770462893356,11.27059656,2012.2,2011.4,10.25392301]
[1770462893858,7.40912668,2012.4,2011.4,10.25392301]
[1770462893859,16.51588348,2012.4,2011.7,9.79515376]
[1770462894164,9.1067568,2012.4,2011.9,9.79515376]
[1770462895766,7.40912668,2012.5,2011.9,9.79515376]
[1770462895963,16.51588348,2012.5,2011.9,9.79515376]
[1770462896164,9.1067568,2012.4,2011.5,9.79515376]
[1770462896563,3.11436373,2012.2,2011.4,0.45876925]
[1770462896763,9.1067568,2012.1,2011.4,10.25392301]
[1770462896959,9.1067568,2012.1,2011.4,0.45876925]
[1770462897965,9.1067568,2012.1,2011.4,0.0058618]
[1770462898263,9.1067568,2012.0,2011.4,0.0058618]
[1770462899458,9.1067568,2012.0,2011.2,10.21321643]
[1770462899459,9.1067568,2011.9,2011.2,9.79515376]
[1770462900365,9.1067568,2012.0,2011.2,10.22821596]
[1770462902071,7.40912668,2012.2,2011.2,10.22821596]
[1770462902072,9.1067568,2012.1,2011.2,10.22821596]
[1770462902465,9.1067568,2012.3,2011.2,10.22821596]
[1770462903269,16.51588348,2012.4,2011.2,10.22821596]
[1770462903769,9.1067568,2012.3,2011.2,10.22821596]
[1770462909965,9.1067568,2012.3,2011.2,10.47696596]
[1770462911477,9.1067568,2012.3,2011.3,9.29859078]
[1770462911677,9.1067568,2012.3,2011.3,9.54732078]
[1770462913381,9.1067568,2012.3,2011.5,9.29859078]
[1770462916181,9.1067568,2012.3,2011.5,9.54729078]
[1770462917989,9.1067568,2012.3,2011.5,0.2487]
[1770462917990,9.99726597,2012.2,2011.5,0.2487]
[1770462920788,9.99726597,2012.1,2011.2,9.73165298]
[1770462922291,9.99726597,2012.1,2011.2,9.98039298]
[1770462929304,9.99726597,2012.0,2011.2,9.98039298]
[1770462929505,9.18892401,2012.0,2011.2,9.98039298]
[1770462930504,17.40639265,2012.2,2011.4,9.29859078]
[1770462931505,17.40639265,2012.2,2011.4,9.54731078]
[1770462932404,9.99726597,2012.1,2011.4,9.54731078]
[1770462933508,9.99726597,2012.1,2011.5,9.29859078]
[1770462939204,7.40912668,2012.2,2011.5,9.29859078]
[1770462939410,16.74342232,2012.3,2011.5,9.54730078]
[1770462939611,16.74342232,2012.3,2011.7,9.15204077]
[1770462942015,9.33429564,2012.3,2011.7,9.15204077]
[1770462942410,7.40912668,2012.4,2011.7,9.15204077]
[1770462942616,16.72477853,2012.4,2011.9,9.15204077]
[1770462943413,9.33429564,2012.3,2011.9,9.15204077]
[1770462943717,16.72477853,2012.4,2011.9,9.15204077]
[1770462944718,9.33429564,2012.4,2011.9,9.15204077]
[1770462946316,9.33429564,2012.5,2011.9,9.15204077]
[1770462947813,9.33429564,2012.9,2012.3,9.15204077]
[1770462948914,9.33429564,2012.7,2011.9,9.15204077]
[1770462951316,9.33429564,2012.7,2011.7,9.15204077]
[1770462952623,9.33429564,2012.6,2011.7,9.15204077]
[1770462959215,9.33429564,2012.5,2011.7,9.15204077]
[1770462960324,7.43300493,2012.8,2012.0,9.15204077]
[1770462960621,9.33429564,2013.0,2012.3,9.15204077]
[1770462961423,9.33429564,2013.1,2012.6,9.15204077]
[1770462961722,9.33937764,2013.3,2012.6,9.15204077]
[1770462964516,0.005082,2013.3,2012.8,9.15204077]
[1770462964818,0.005082,2013.3,2012.8,9.15748138]
[1770462965128,9.33429564,2014.0,2012.8,9.40602138]
[1770462965325,9.33429564,2014.0,2013.0,9.15204077]
[1770462966017,9.34016356,2014.0,2013.2,9.38850801]
[1770462966219,9.34016356,2014.0,2013.2,9.63699801]
[1770462967621,0.00586792,2014.0,2013.2,9.63699801]
[1770462968128,0.00586792,2014.0,2013.4,9.38850801]
[1770462968529,9.04047521,2014.0,2013.4,9.38850801]
[1770462969524,0.00586792,2014.0,2013.4,9.38850801]
[1770462969724,0.00586792,2014.0,2013.4,9.63697801]
[1770462970415,0.00586792,2014.0,2013.6,9.19740716]
[1770462970617,9.65677052,2014.3,2013.6,0.24845]
[1770462970824,9.65677052,2014.3,2013.3,9.19740716]
[1770462971127,9.65677052,2014.3,2013.0,9.44592716]
[1770462971524,9.6631707,2014.3,2013.0,9.44592716]
[1770462977434,9.6631707,2014.3,2013.4,9.19740716]
[1770462982436,9.6631707,2014.3,2013.3,9.19740716]
[1770462986841,9.6631707,2014.3,2013.0,9.19740716]
[1770462989139,9.65677052,2014.2,2013.0,9.19740716]
[1770462990642,9.65677052,2014.1,2013.0,9.19740716]
[1770462992136,17.08977545,2014.1,2013.0,9.19740716]
[1770462992342,9.65677052,2014.0,2013.0,9.19740716]
[1770462998853,9.63047507,2013.9,2013.0,9.19740716]
[1770462999456,7.43300493,2013.6,2013.0,9.19740716]
[1770462999653,9.63047507,2013.5,2013.0,9.19740716]
[1770463004253,9.63047507,2013.5,2012.9,9.32877552]
[1770463009357,9.63047507,2013.5,2012.8,0.00544061]
[1770463009555,9.63047507,2013.3,2012.3,9.32877552]
[1770463010663,9.63047507,2013.3,2012.3,9.33339206]
[1770463013458,9.63047507,2013.3,2012.6,9.32877552]
[1770463015765,11.79155365,2013.3,2012.6,9.32877552]
[1770463016160,9.63047507,2013.0,2012.3,9.33339206]
[1770463016467,9.63047507,2013.0,2012.3,0.00461654]
[1770463016468,9.63047507,2012.8,2012.3,0.00461654]
[1770463016767,9.63047507,2012.8,2012.1,9.32877552]
[1770463016768,9.63047507,2012.6,2012.1,9.32877552]
[1770463017066,8.8224756,2012.6,2012.1,9.32877552]
[1770463017668,8.8224756,2012.6,2012.1,9.33437798]
[1770463018665,8.8224756,2012.6,2012.0,9.32877552]
[1770463018863,9.63047507,2012.4,2012.0,9.32877552]
[1770463019769,9.63047507,2012.4,2012.0,9.33506687]
[1770463020070,9.63047507,2012.4,2011.4,2.95042235]
[1770463020367,9.63047507,2012.3,2011.3,9.32877552]
[1770463020863,9.63047507,2012.3,2011.2,0.42821355]
[1770463021064,9.63047507,2012.3,2011.2,9.33513685]
[1770463021971,9.63047507,2012.3,2011.2,9.72764423]
[1770463030276,10.547519,2012.7,2011.2,9.72764423]
[1770463030277,9.81463289,2012.1,2011.2,9.72764423]
[1770463032073,9.81463289,2012.1,2011.2,0.00636133]
[1770463032377,9.81463289,2011.8,2010.9,9.18759327]
[1770463032566,9.81463289,2011.8,2010.9,0.392857]
[1770463032770,9.81463289,2011.8,2010.7,9.18759327]
[1770463033371,9.81463289,2011.8,2010.7,9.19227399]
[1770463033971,9.81463289,2011.8,2010.7,9.57637328]
[1770463036776,9.81463289,2011.8,2010.8,9.18759327]
[1770463036975,9.81463289,2012.1,2010.8,9.18759327]
[1770463040682,9.81463289,2012.3,2011.2,9.18759327]
[1770463042890,9.81463289,2012.3,2011.2,9.43633327]
[1770463043386,10.80136747,2012.8,2011.3,9.18759327]
[1770463043387,9.81463289,2012.7,2011.3,9.18759327]
[1770463043591,9.81463289,2012.7,2011.3,9.43632327]
[1770463045890,9.81463289,2012.7,2011.5,9.43630327]
[1770463046094,9.81463289,2012.7,2011.6,9.18759327]
[1770463047986,9.81463289,2012.7,2011.6,9.43628327]
[1770463048294,9.81463289,2012.7,2011.7,9.18759327]
[1770463049695,9.81463289,2012.7,2011.7,9.43627327]
[1770463050900,9.81463289,2012.7,2011.9,9.18759327]
[1770463051399,9.81463289,2012.7,2011.9,9.43625327]
[1770463051598,9.81993136,2012.8,2011.9,9.43625327]
[1770463051796,9.81993136,2012.8,2012.1,9.18759327]
[1770463052194,9.81463289,2013.1,2012.1,9.18759327]
[1770463053302,9.81995298,2013.1,2012.2,9.43621327]
[1770463053503,9.81995298,2013.1,2012.2,9.44059684]
[1770463054404,9.81995298,2013.1,2012.2,0.25300357]
[1770463055501,9.81995298,2013.1,2012.2,9.44059684]
[1770463056501,9.64857056,2012.6,2011.6,0.2487]
[1770463056706,9.64857056,2012.6,2011.6,9.45959759]
[1770463057602,9.64857056,2012.6,2011.6,9.46488473]
[1770463058404,9.64857056,2012.6,2011.6,0.00528714]
[1770463058996,9.64857056,2012.3,2011.6,0.00528714]
[1770463060599,9.64857056,2012.3,2011.2,9.21089759]
[1770463061598,9.64857056,2012.3,2011.2,9.2173425]
[1770463062304,9.64857056,2012.1,2011.2,0.00644491]
[1770463062896,9.64857056,2012.1,2011.2,9.2173425]
[1770463077919,9.64857056,2012.4,2011.2,9.2173425]
[1770463079333,9.64857056,2012.3,2011.2,9.2173425]
[1770463081317,9.64857056,2012.0,2010.8,9.21089759]
[1770463081625,9.64857056,2011.9,2011.0,9.21089759]
[1770463082322,9.64857056,2011.9,2011.0,9.2156036]
[1770463084126,9.64857056,2011.8,2011.0,9.2156036]
[1770463086226,9.24182234,2011.7,2011.0,9.2156036]
[1770463087825,9.24182234,2011.6,2011.0,9.2156036]
[1770463088026,9.24745954,2011.6,2011.0,9.2156036]
[1770463089528,9.24745954,2011.6,2011.0,0.00470601]
[1770463089728,9.24182234,2011.5,2011.0,9.33913377]
[1770463090733,9.5010242,2011.4,2011.0,9.33913377]
[1770463092727,5.93336672,2011.5,2011.0,9.33913377]
[1770463093427,15.44002812,2011.6,2011.0,9.33913377]
[1770463098240,9.5010242,2011.5,2011.0,9.33913377]
[1770463100043,9.5010242,2011.3,2010.7,0.38409929]
[1770463100345,9.5010242,2011.3,2010.5,9.33442776]
[1770463100740,9.5010242,2011.2,2010.5,9.33442776]
[1770463101042,9.5010242,2011.2,2010.5,9.33882519]
[1770463101242,15.43439092,2011.2,2010.5,9.33882519]
[1770463101443,9.5010242,2011.1,2010.5,9.33882519]
[1770463102246,9.5010242,2011.1,2010.5,9.70340082]
[1770463102640,9.5010242,2011.1,2010.5,0.00439743]
[1770463103947,15.43439092,2011.1,2010.5,0.00439743]
[1770463104246,9.5010242,2011.0,2010.3,9.33442776]
[1770463105147,9.5010242,2011.0,2010.3,9.3398987]
[1770463105340,9.5010242,2011.0,2010.3,9.71585379]
[1770463108145,9.5010242,2011.1,2010.3,9.71585379]
[1770463108344,5.93336672,2011.3,2010.3,9.96471379]
[1770463108538,9.5010242,2011.4,2010.3,9.96471379]
[1770463110050,9.5010242,2011.3,2010.3,9.96471379]
[1770463110750,9.5010242,2011.3,2010.3,9.71585379]
[1770463111146,9.5010242,2011.2,2010.3,9.71585379]
[1770463115652,9.5010242,2011.2,2010.3,0.00547094]
[1770463115856,15.36420353,2010.9,2010.3,0.00547094]
[1770463116053,9.43083681,2010.8,2010.3,0.00547094]
[1770463117050,9.43083681,2010.8,2010.3,9.79128064]
[1770463117256,15.36420353,2010.9,2010.3,9.79128064]
[1770463117757,15.36420353,2011.0,2010.3,9.79128064]
[1770463117958,9.43083681,2011.0,2010.3,9.79128064]
[1770463118359,9.43083681,2010.9,2010.3,9.79128064]
[1770463119755,9.43083681,2010.9,2010.3,0.00547094]
[1770463119957,9.43083681,2010.8,2010.3,0.00547094]
[1770463120166,9.43083681,2010.8,2010.3,9.79128064]
[1770463120661,9.43083681,2010.6,2009.9,0.07926122]
[1770463120866,9.43083681,2010.4,2009.9,9.86507092]
[1770463121664,9.43083681,2010.4,2009.9,9.87149954]
[1770463122262,9.43083681,2010.4,2009.9,0.08568984]
[1770463122462,9.43083681,2010.4,2009.9,9.87149954]
[1770463122663,15.36420353,2010.5,2009.9,9.87149954]
[1770463123065,9.43083681,2010.4,2009.9,10.24613696]
[1770463124065,9.43083681,2010.5,2009.9,10.24613696]
[1770463125769,5.93336672,2010.6,2009.9,10.24613696]
[1770463126071,9.43083681,2011.1,2010.1,9.7858097]
[1770463134377,9.43083681,2011.3,2010.1,9.7858097]
[1770463134574,9.43083681,2011.3,2010.3,9.7858097]
[1770463134771,9.43083681,2011.3,2010.3,10.0346697]
[1770463138980,9.43083681,2011.3,2010.6,9.7858097]
[1770463141573,9.43647401,2011.6,2010.7,9.7858097]
[1770463142179,0.0056372,2011.6,2010.7,9.7858097]
[1770463142583,0.0056372,2011.6,2011.1,9.7858097]
[1770463142783,9.42099132,2011.8,2011.1,9.7858097]
[1770463143684,9.42672365,2011.8,2011.1,9.7858097]
[1770463143977,9.42672365,2011.8,2011.0,0.24877]
[1770463144184,9.42672365,2011.8,2011.0,10.0345797]
[1770463145383,0.00573233,2011.8,2011.2,9.7858097]
[1770463145585,9.513e-05,2011.8,2011.2,9.7858097]
[1770463145787,9.513e-05,2011.8,2011.2,10.0345597]
[1770463146281,9.1506574,2011.8,2011.2,10.0345597]
[1770463147088,9.513e-05,2011.8,2011.2,10.0345597]
[1770463147382,9.513e-05,2011.8,2011.4,9.85954251]
[1770463147586,9.15056227,2012.4,2011.4,10.11314118]
[1770463147887,9.15056227,2012.4,2011.6,10.10824251]
[1770463148583,9.15466454,2012.4,2011.8,9.85954251]
[1770463148786,0.00410227,2012.4,2011.8,10.10821251]
[1770463149280,9.15466454,2012.4,2011.8,10.10821251]
[1770463150481,0.00410227,2012.4,2011.8,10.10821251]
[1770463150682,0.00410227,2012.4,2011.9,0.24866]
[1770463150883,0.00410227,2012.4,2012.0,8.99892616]
[1770463152686,9.55762135,2012.4,2012.0,8.99892616]
[1770463153290,0.00410227,2012.4,2012.0,8.99892616]
[1770463154488,9.55762135,2012.4,2012.0,8.99892616]
[1770463154688,9.55762135,2012.4,2011.9,9.24758616]
[1770463154988,9.55762135,2012.4,2011.5,0.2487]
[1770463156392,9.55762135,2012.4,2011.5,9.24762616]
[1770463156782,9.55762135,2012.4,2011.7,8.99892616]
[1770463157091,9.55762135,2012.4,2011.8,0.24867]
[1770463157390,9.55762135,2012.4,2011.8,9.24759616]
[1770463158490,9.55762135,2012.4,2011.8,0.24867]
[1770463158691,9.55762135,2012.4,2011.7,8.99892616]
[1770463158887,9.55762135,2012.4,2011.5,8.99892616]
[1770463160686,9.55762135,2012.4,2011.5,9.24763616]
[1770463161489,9.55762135,2012.4,2011.7,8.99892616]
[1770463164998,9.55762135,2012.4,2011.6,0.2487]
[1770463165197,9.55762135,2012.4,2011.6,9.24762616]
[1770463165899,9.55762135,2012.4,2011.8,8.99892616]
[1770463167392,0.00410227,2012.4,2011.8,8.99892616]
[1770463167799,9.55762135,2012.4,2011.8,8.99892616]
[1770463170803,0.00410227,2012.4,2011.8,8.99892616]
[1770463171001,9.55762135,2012.4,2011.8,8.99892616]
[1770463171401,0.00410227,2012.4,2011.8,8.99892616]
[1770463173209,9.55351908,2012.7,2011.8,8.99892616]
[1770463174110,9.55867708,2012.7,2011.8,8.99892616]
[1770463177312,9.41798914,2012.6,2011.8,8.99892616]
[1770463178719,0.005158,2012.7,2012.1,8.74924872]
[1770463178920,9.42314714,2012.7,2012.1,8.99787872]
[1770463182024,9.41798914,2012.9,2012.3,8.99785872]
[1770463183124,9.42214733,2012.9,2012.3,8.99785872]
[1770463185019,16.85488032,2013.3,2012.6,8.99781872]
[1770463185227,9.41798914,2013.3,2012.6,8.99781872]
[1770463186115,9.42359205,2013.3,2012.6,8.99781872]
[1770463186321,0.00560291,2013.3,2012.9,8.74924872]
[1770463186621,7.43689118,2013.9,2013.3,0.24848]
[1770463186825,9.41798914,2014.1,2013.4,8.74924872]
[1770463187620,9.4222103,2014.1,2013.4,8.99771872]
[1770463187816,0.00422116,2014.1,2013.4,8.99771872]
[1770463188017,0.00422116,2014.1,2013.6,8.74924872]